Workbook

Sheet Instructions

Sheet Input
K2: Moderately well sorted sand low in fines | U2: Shephard | V2: Zunker | W2: Terzaghi | X2: Barr | Y2: Plotted Data - Line | AA2: ü | AC2: Estimation of Hydraulic Conductivity | AD2: cm/s | AE2: m/s | AF2: m/d | AH2: Estimation of Hydraulic Conductivity | AI2: cm/s | AJ2: m/s | AK2: m/d | AM2: A. mean | AN2: G mean
U3: 142.8 | V3: 0.00155 | W3: 0.0084 | X3: 0.00402 | Y3: 1.915127956 | Z3: 100.784517 | AB3: =IF(ISBLANK(F19)=FALSE,1,0) -> 0 | AC3: Hazen | AD3: =IF($AB3>0,$AB3*H19," ") ->  | AE3: =IF($AB3>0,$AB3*I19," ") ->  | AH3: Hazen | AI3: =IF($AB3=0,H19," ") -> 0.03000614404 | AJ3: =IF($AB3=0,I19," ") -> 0.0003000614404 | AK3: 25.92530845 | AM3: =$J$36 -> 26.95722466 | AN3: =$J$35 -> 22.14576427
W4: 0.15 | X4: 0.15 | Y4: 1.874052253 | Z4: 101.0219619 | AB4: =IF(ISBLANK(F20)=FALSE,1,0) -> 1 | AC4: Hazen K (cm/s) = d102 (mm2) | AD4: =IF($AB4>0,$AB4*H20," ") -> 0.0225 | AE4: =IF($AB4>0,$AB4*I20," ") -> 0.000225 | AF4: =IF($AB4>0,$AB4*J20," ") -> 19.44 | AH4: Hazen K (cm/s) = d102 (mm2) | AI4: =IF($AB4=0,H20," ") ->  | AJ4: =IF($AB4=0,I20," ") ->  | AK4: =IF($AB4=0,J20," ") ->  | AM4: 26.95722466 | AN4: 22.14576427
C5: Mass Sample (g): | E5: T (oC) | Y5: 1.833857544 | Z5: 101.1663415 | AB5: 1 | AC5: Slichter | AD5: 0.009596320932 | AE5: 9.596320932e-05 | AF5: 8.291221285 | AH5: Slichter | AM5: 26.95722466 | AN5: 22.14576427
C6: 100 | E6: 20 | V6: 0.15 | W6: 0.15 | X6: 0.15 | Y6: 1.794524931 | Z6: 101.2246652 | AB6: 0 | AC6: Terzaghi | AH6: Terzaghi | AI6: 0.01669533766 | AJ6: 0.0001669533766 | AK6: 14.42477174 | AM6: 26.95722466 | AN6: 22.14576427
A7: Sieve opening di (f) | B7: Sieve opening (ps) di (mm) | C7: Mass of retained (mr) (g) | D7: mass fraction (mf) | E7: Percent Passing (pp) | Y7: 1.756035924 | Z7: 101.2034989 | AB7: 1 | AC7: Beyer | AD7: 0.02480790997 | AE7: 0.0002480790997 | AF7: 21.43403421 | AH7: Beyer | AM7: 26.95722466 | AN7: 22.14576427
A8: =IF(ISBLANK(B8)," ",3.3193*LOG(B8)) -> 0.9992088646 | B8: 2 | C8: 0 | D8: 0 | E8: 100 | K8: Effective Grain Diameters (mm) | M8: Other Useful Parameters | V8: ne for Dg | W8: Dgeom approx | Y8: 1.718372431 | Z8: 101.1089916 | AB8: 1 | AC8: Sauerbrei | AD8: 0.03390892043 | AE8: 0.0003390892043 | AF8: 29.29730725 | AH8: Sauerbrei | AM8: 26.95722466 | AN8: 22.14576427
A9: -0.2860776798 | B9: 0.82 | C9: 20 | D9: 0.2 | E9: 80 | K9: d10 | L9: 0.15 | M9: Uniformity Coef. | N9: =L13/L9 -> 3.666666667 | V9: 0 | W9: =2^((N17+N18+N19)/3) -> 0.4888725656 | Y9: 1.681516745 | Z9: 100.9469011 | AB9: 0 | AC9: Kruger | AH9: Kruger | AI9: 0.05162397279 | AJ9: 0.0005162397279 | AK9: 44.60311249 | AM9: 26.95722466 | AN9: 22.14576427
A10: -0.8618141248 | B10: 0.55 | C10: 20 | D10: 0.2 | E10: 60 | K10: d17 | L10: 0.241 | M10: n computed | N10: =0.255*(1+0.83^N9) -> 0.3837735057 | O10: =IF(V9>0,V9,0.255*(1+0.83^N9)) -> 0.3837735057 | Y10: 1.645451541 | Z10: 100.7226179 | AB10: 0 | AC10: Kozeny-Carmen | AH10: Kozeny-Carmen | AI10: 0.1032646656 | AJ10: 0.001032646656 | AK10: 89.2206711 | AM10: 26.95722466 | AN10: 22.14576427
A11: -1.25054863 | B11: 0.42 | C11: 20 | D11: 0.2 | E11: 40 | K11: d20 | L11: 0.28 | M11: g (cm/s2) | N11: 980 | Y11: 1.610159863 | Z11: 100.4411874 | AB11: 1 | AC11: Zunker | AD11: 0.05640367593 | AE11: 0.0005640367593 | AF11: 48.73277601 | AH11: Zunker | AM11: 26.95722466 | AN11: 22.14576427
A12: -1.835048347 | B12: 0.28 | C12: 20 | D12: 0.2 | E12: 20 | K12: d50 | L12: 0.485 | M12: r (g/cm3) | N12: 0.998136 | Y12: 1.575625123 | Z12: 100.1073311 | AB12: 1 | AC12: Zamarin | AD12: 0.0664575214 | AE12: 0.000664575214 | AF12: 57.41929849 | AH12: Zamarin | AM12: 26.95722466 | AN12: 22.14576427
A13: -2.734800284 | B13: 0.15 | C13: 10 | D13: 0.1 | E13: 10 | K13: d60 | L13: 0.55 | M13: m (g/cm s) | N13: 0.009848 | Y13: 1.541831084 | Z13: 99.72546633 | AB13: 1 | AC13: USBR | AD13: 0.02551364244 | AE13: 0.0002551364244 | AF13: 22.04378707 | AH13: USBR | AM13: 26.95722466 | AN13: 22.14576427
A14: -4.470391703 | B14: 0.045 | C14: 10 | D14: 0.1 | E14: 0 | K14: dgeometric mean | L14: 0.4497090447 | M14: rg/m (1/cm s) | N14: 99327.09992 | Y14: 1.50876186 | Z14: 99.2997247 | AB14: 1 | AC14: Barr | AD14: 0.01337274495 | AE14: 0.0001337274495 | AF14: 11.55405164 | AH14: Barr | AM14: 26.95722466 | AN14: 22.14576427
K15: de (Kruger) | L15: 0.3438349957 | M15: tau (Sauerbrei) | N15: 1.05302 | Y15: 1.476401906 | Z15: 98.83396974 | AB15: 1 | AC15: Alyamani and Sen | AD15: 0.008379117839 | AE15: 8.379117839e-05 | AF15: 7.239557812 | AH15: Alyamani and Sen | AM15: 26.95722466 | AN15: 22.14576427
K16: de (Kozeny) | L16: 0.2900887122 | M16: d5f | N16: -3.358465515 | Y16: 1.444736008 | Z16: 98.33181321 | AB16: 0 | AC16: Chapuis | AH16: Chapuis | AI16: 0.01738644839 | AJ16: 0.0001738644839 | AK16: 15.02189141 | AM16: 26.95722466 | AN16: 22.14576427
K17: de (Zunker) | L17: 0.3073401895 | M17: d16f | N17: -2.132901602 | Y17: 1.413749282 | Z17: 97.79663046 | AB17: 1 | AC17: Krumbein and Monk | AD17: 0.03218278355 | AE17: =IF($AB17>0,$AB17*I33," ") -> 0.0003218278355 | AF17: 27.80592499 | AH17: Krumbein and Monk | AI17: =IF($AB17=0,H33," ") ->  | AM17: 26.95722466 | AN17: 22.14576427
G18: Estimation of Hydraulic Conductivity | H18: cm/s | I18: m/s | J18: m/d | K18: de (Zamarin) | L18: 0.3259641305 | M18: d50f | N18: =3.3193*LOG(L12) -> -1.043117447 | Y18: 1.383427159 | Z18: 97.23157491 | AB18: 1 | AC18: Shepherd | AD18: 0.05008276915 | AE18: 0.0005008276915 | AF18: 43.27151255 | AH18: Shepherd | AM18: 26.95722466 | AN18: 22.14576427
G19: Hazen | H19: 0.03000614404 | I19: =H19/100 -> 0.0003000614404 | J19: =H19/100*24*60*60 -> 25.92530845 | K19: Io (Alyameni) | L19: =IF(L9-10*(L12-L9)/40<0,0,L9-10*(L12-L9)/40) -> 0.06625 | M19: d84f | N19: 0.07861010491 | Y19: 1.353755386 | Z19: 96.6395917 | AC19: geometric mean | AD19: =GEOMEAN(AD3:AD18) -> 0.02563167161 | AE19: 0.0002563167161 | AF19: =GEOMEAN(AF3:AF18) -> 22.14576427
F20: ü | G20: Hazen K (cm/s) = d102 (mm2) | H20: =L9^2 -> 0.0225 | I20: =H20/100 -> 0.000225 | J20: =H20/100*24*60*60 -> 19.44 | M20: d95f | N20: 0.7697743853 | Y20: 1.324720014 | Z20: 96.02343034 | AC20: arithmetic mean | AD20: =AVERAGE(AD3:AD18) -> 0.03120049151 | AE20: 0.0003120049151 | AF20: =AVERAGE(AF3:AF18) -> 26.95722466
A21: =IF(ISBLANK(B21)," ",3.3193*LOG(B21)) ->  | F21: ü | G21: Slichter | H21: 0.009596320932 | I21: 9.596320932e-05 | J21: =H21/100*24*60*60 -> 8.291221285 | M21: sf | N21: =(N19-N17)/4+(N20-N16)/6.6 -> 1.178368821 | Y21: 1.296307393 | Z21: 95.3856568
G22: Terzaghi | H22: 0.01669533766 | I22: 0.0001669533766 | J22: =H22/100*24*60*60 -> 14.42477174 | L22: mm | N22: % in sample | Y22: 1.268504166 | Z22: 94.72866475
F23: ü | G23: Beyer | H23: 0.02480790997 | I23: 0.0002480790997 | J23: 21.43403421 | L23: >64 | M23: Boulder | Y23: 1.241297263 | Z23: 94.05468613
F24: ü | G24: Sauerbrei | H24: 0.03390892043 | I24: 0.0003390892043 | J24: 29.29730725 | L24: 16 - 64 | M24: coarse gravel | Y24: 1.214673895 | Z24: 93.36580108
G25: Kruger | H25: 0.05162397279 | I25: 0.0005162397279 | J25: 44.60311249 | L25: 8 - 16 | M25: medium gravel | Y25: 1.188621545 | Z25: 92.66394735
G26: Kozeny-Carmen | H26: 0.1032646656 | I26: 0.001032646656 | J26: 89.2206711 | L26: 2 - 8 | M26: fine gravel | N26: 0 | Y26: 1.163127967 | Z26: 91.95092902
F27: ü | G27: Zunker | H27: 0.05640367593 | I27: 0.0005640367593 | J27: 48.73277601 | L27: 0.5 - 2 | M27: coarse sand | N27: 40 | Y27: 1.138181175 | Z27: 91.22842476
F28: ü | G28: Zamarin | H28: 0.0664575214 | I28: 0.000664575214 | J28: 57.41929849 | L28: 0.25 - 0.5 | M28: medium sand | N28: 40 | Y28: 1.113769443 | Z28: 90.49799561
F29: ü | G29: USBR | H29: 0.02551364244 | I29: 0.0002551364244 | J29: 22.04378707 | L29: 0.063 - 0.25 | M29: fine sand | N29: 10 | Y29: 1.089881294 | Z29: 89.76109225
F30: ü | G30: Barr | H30: 0.01337274495 | I30: 0.0001337274495 | J30: 11.55405164 | L30: 0.016 - 0.063 | M30: coarse silt | N30: 10 | Y30: 1.066505498 | Z30: 89.01906181
F31: ü | G31: Alyamani and Sen | H31: 0.008379117839 | I31: 8.379117839e-05 | J31: 7.239557812 | L31: 0.008 - 0.016 | M31: medium silt | Y31: 1.043631067 | Z31: 88.27315434
G32: Chapuis | H32: 0.01738644839 | I32: 0.0001738644839 | J32: 15.02189141 | L32: 0.002 - 0.008 | M32: fine silt | Y32: 1.021247247 | Z32: 87.52452886
F33: ü | G33: Krumbein and Monk | H33: 0.03218278355 | I33: =H33/100 -> 0.0003218278355 | J33: =H33/100*24*60*60 -> 27.80592499 | L33: <0.002 | M33: clay | Y33: 0.999343516 | Z33: 86.77425899
F34: ü | G34: Shepherd | H34: 0.05008276915 | I34: =H34/100 -> 0.0005008276915 | J34: =H34/100*24*60*60 -> 43.27151255 | Y34: 0.9779095764 | Z34: 86.02333832
G35: geometric mean | H35: =AD19 -> 0.02563167161 | I35: 0.0002563167161 | J35: 22.14576427 | Y35: 0.9569353524 | Z35: 85.27268544
G36: arithmetic mean | H36: 0.03120049151 | I36: 0.0003120049151 | J36: 26.95722466 | Y36: 0.936410984 | Z36: 84.5231486
Y37: 0.9163268227 | Z37: 83.77551016
Y38: 0.8966734268 | Z38: 83.03049076
Y39: 0.8774415574 | Z39: 82.28875322
Y40: 0.8586221734 | Z40: 81.55090619
Y41: 0.840206428 | Z41: 80.81750765
Y42: 0.8221856639 | Z42: 80.0890681
Y43: 0.8045514095 | Z43: 79.36849558
Y44: 0.7872953749 | Z44: 78.6512596
Y45: 0.7704094481 | Z45: 77.92412134
Y46: 0.753885691 | Z46: 77.17546899
Y47: 0.7377163357 | Z47: 76.39525372
Y48: 0.7218937811 | Z48: 75.57484934
Y49: 0.706410589 | Z49: 74.70692252
Y50: 0.6912594807 | Z50: 73.78531324
Y51: 0.6764333336 | Z51: 72.80492437
Y52: 0.6619251781 | Z52: 71.76161997
Y53: 0.6477281937 | Z53: 70.65213157
Y54: 0.6338357066 | Z54: 69.4739719
Y55: 0.6202411858 | Z55: 68.22535552
Y56: 0.6069382405 | Z56: 66.90512583
Y57: 0.5939206171 | Z57: 65.51268809
Y58: 0.5811821959 | Z58: 64.04794784
Y59: 0.5687169887 | Z59: 62.51125447
Y60: 0.5565191354 | Z60: 60.90334958
Y61: 0.544582902 | Z61: 59.2293269
Y62: 0.5329026771 | Z62: 57.52386116
Y63: 0.5214729699 | Z63: 55.80551754
Y64: 0.5102884073 | Z64: 54.08636454
Y65: 0.4993437314 | Z65: 52.37710097
Y66: 0.4886337972 | Z66: 50.68717091
Y67: 0.4781535698 | Z67: 49.02487011
Y68: 0.4678981226 | Z68: 47.39744455
Y69: 0.4578626344 | Z69: 45.81118154
Y70: 0.4480423875 | Z70: 44.27149405
Y71: 0.4384327655 | Z71: 42.78299857
A72: =IF(ISBLANK(B72)," ",3.3193*LOG(B72)) ->  | Y72: 0.4290292508 | Z72: 41.34958712
Y73: 0.419827423 | Z73: 39.97448483
Y74: 0.4108229561 | Z74: 38.63524713
Y75: 0.4020116172 | Z75: 37.31248576
Y76: 0.393389264 | Z76: 36.0103722
Y77: 0.3849518433 | Z77: 34.73254421
Y78: 0.3766953885 | Z78: 33.48215202
Y79: 0.3686160184 | Z79: 32.26190108
Y80: 0.3607099347 | Z80: 31.07409151
Y81: 0.3529734209 | Z81: 29.92065462
Y82: 0.3454028399 | Z82: 28.80318662
Y83: 0.337994633 | Z83: 27.72297975
Y84: 0.3307453174 | Z84: 26.68105097
Y85: 0.3236514853 | Z85: 25.67816849
Y86: 0.3167098018 | Z86: 24.71487612
Y87: 0.3099170037 | Z87: 23.79151581
Y88: 0.3032698976 | Z88: 22.90824828
Y89: 0.2967653589 | Z89: 22.06507209
Y90: 0.2904003296 | Z90: 21.26184114
Y91: 0.2841718175 | Z91: 20.49828068
Y92: 0.2780768947 | Z92: 19.77554905
Y93: 0.272112696 | Z93: 19.11294424
Y94: 0.2662764175 | Z94: 18.51048057
Y95: 0.2605653156 | Z95: 17.96112357
Y96: 0.2549767056 | Z96: 17.45847247
Y97: 0.2495079601 | Z97: 16.99671103
Y98: 0.2441565084 | Z98: 16.57056191
Y99: 0.2389198348 | Z99: 16.17524435
Y100: 0.2337954775 | Z100: 15.80643484
Y101: 0.2287810274 | Z101: 15.46023068
Y102: 0.2238741274 | Z102: 15.13311614
Y103: 0.2190724707 | Z103: 14.82193111
Y104: 0.2143738 | Z104: 14.52384204
Y105: 0.2097759065 | Z105: 14.236315
Y106: 0.2052766287 | Z106: 13.95709074
Y107: 0.2008738515 | Z107: 13.68416161
Y108: 0.1965655051 | Z108: 13.41575014
Y109: 0.1923495643 | Z109: 13.15028932
Y110: 0.188224047 | Z110: 12.88640426
Y111: 0.1841870139 | Z111: 12.62289535
Y112: 0.1802365672 | Z112: 12.35872256
Y113: 0.1763708497 | Z113: 12.09299109
Y114: 0.1725880442 | Z114: 11.82493804
Y115: 0.1688863724 | Z115: 11.55392009
Y116: 0.1652640942 | Z116: 11.27940224
Y117: 0.1617195066 | Z117: 11.00094734
Y118: 0.1582509434 | Z118: 10.71820649
Y119: 0.1548567741 | Z119: 10.43091022
Y120: 0.1515354029 | Z120: 10.13886035
Y121: 0.1482852686 | Z121: 9.843550573
Y122: 0.1451048432 | Z122: 9.553502305
Y123: 0.1419926316 | Z123: 9.269763387
Y124: 0.1389471709 | Z124: 8.992112532
Y125: 0.1359670292 | Z125: 8.720342023
Y126: 0.1330508056 | Z126: 8.454256726
Y127: 0.1301971293 | Z127: 8.193673163
Y128: 0.1274046587 | Z128: 7.938418664
Y129: 0.1246720811 | Z129: 7.688330575
Y130: 0.1219981118 | Z130: 7.44325552
Y131: 0.1193814939 | Z131: 7.203048724
Y132: 0.1168209972 | Z132: 6.967573384
Y133: 0.1143154182 | Z133: 6.736700079
Y134: 0.1118635788 | Z134: 6.510306235
Y135: 0.1094643266 | Z135: 6.288275622
Y136: 0.1071165335 | Z136: 6.070497887
Y137: 0.104819096 | Z137: 5.85686813
Y138: 0.1025709339 | Z138: 5.647286504
Y139: 0.1003709905 | Z139: 5.441657847
Y140: 0.0982182315 | Z140: 5.239891343
Y141: 0.09611164493 | Z141: 5.04190021
Y142: 0.09405024046 | Z142: 4.847601407
Y143: 0.09203304904 | Z143: 4.656915369
Y144: 0.09005912238 | Z144: 4.469765756
Y145: 0.08812753253 | Z145: 4.286079227
Y146: 0.08623737147 | Z146: 4.105785228
Y147: 0.08438775062 | Z147: 3.9288158
Y148: 0.08257780047 | Z148: 3.755105395
Y149: 0.08080667017 | Z149: 3.584590715
Y150: 0.0790735271 | Z150: 3.417210558
Y151: 0.07737755652 | Z151: 3.252905676
Y152: 0.07571796116 | Z152: 3.091618648
Y153: 0.07409396083 | Z153: 2.93329376
Y154: 0.07250479208 | Z154: 2.777876896
Y155: 0.07094970787 | Z155: 2.625315436
Y156: 0.06942797713 | Z156: 2.475558164
Y157: 0.0679388845 | Z157: 2.328555184
Y158: 0.06648172995 | Z158: 2.184257839
Y159: 0.06505582849 | Z159: 2.042618641
Y160: 0.06366050979 | Z160: 1.903591207
Y161: 0.06229511792 | Z161: 1.767130191
Y162: 0.06095901099 | Z162: 1.633191238
Y163: 0.05965156091 | Z163: 1.501730924
Y164: 0.05837215305 | Z164: 1.372706716
Y165: 0.05712018596 | Z165: 1.246076925
Y166: 0.05589507108 | Z166: 1.121800668
Y167: 0.05469623248 | Z167: 0.9998378314
Y168: 0.0535231066 | Z168: 0.8801490371
Y169: 0.05237514195 | Z169: 0.762695614
Y170: 0.05125179887 | Z170: 0.6474395685
Y171: 0.05015254927 | Z171: 0.5343435597
Y172: 0.0490768764 | Z172: 0.4233708754
Y173: 0.04802427458 | Z173: 0.3144854112
Y174: 0.04699424899 | Z174: 0.2076516499
Y175: 0.0459863154 | Z175: 0.1028346444
Y176: 0.045 | Z176: 0

Sheet Examples
A1: Examples of Grain Retention Datasets from the literature
A3: Example 1 Case 1 Vukovic 15 oC | G3: Sample 1 Odong 20 oC | M3: Thomson SERDP Borden sand | T3: Sample 1 Alyamani and Sen
A4: ps | D4: pp | G4: ps | J4: pp | M4: ps | P4: pp | T4: ps | W4: pp
A5: 2 | D5: 100 | G5: 10 | J5: 85.23 | M5: 10 | P5: 99.99 | T5: 3.7 | W5: 95
A6: 0.82 | D6: 80 | G6: 4.75 | J6: 79.57 | M6: 9 | P6: 99.9 | T6: 2.82 | W6: 90
A7: 0.55 | D7: 60 | G7: 2.36 | J7: 66.73 | M7: 3 | P7: 99.8 | T7: 2 | W7: 85
A8: 0.42 | D8: 40 | G8: 1.18 | J8: 49.99 | M8: 1.3 | P8: 98 | T8: 1.81 | W8: 80
A9: 0.28 | D9: 20 | G9: 0.6 | J9: 30.75 | M9: 0.8 | P9: 97 | T9: 1.7 | W9: 75
A10: 0.15 | D10: 10 | G10: 0.425 | J10: 17.55 | M10: 0.4 | P10: 95 | T10: 1.52 | W10: 70
A11: 0.045 | D11: 0 | G11: 0.3 | J11: 6.28 | M11: 0.23 | P11: 82 | T11: 1.48 | W11: 65
G12: 0.15 | J12: 2.84 | M12: 0.15 | P12: 31 | T12: 1.31 | W12: 60
A13: Example 1 Case 2 Vukovic 15 oC | G13: 0.075 | J13: 0 | M13: 0.07 | P13: 10 | T13: 1.12 | W13: 55
A14: ps | D14: pp | M14: 0.04 | P14: 2.6 | T14: 0.95 | W14: 50
A15: 2 | D15: 100 | M15: 0.027 | P15: 2.6 | T15: 0.92 | W15: 45
A16: 1.5 | D16: 95 | G16: Sample 2 Odong 20 oC | M16: 0.017 | P16: 2.6 | T16: 0.86 | W16: 40
A17: 1.2 | D17: 90 | G17: ps | J17: pp | M17: 0.01 | P17: 2.5 | T17: 0.8 | W17: 35
A18: 0.95 | D18: 85 | G18: 1.18 | J18: 100 | M18: 0.0055 | P18: 1 | T18: 0.75 | W18: 30
A19: 0.82 | D19: 80 | G19: 0.6 | J19: 96.2 | M19: 0.002 | P19: 0 | T19: 0.61 | W19: 25
A20: 0.73 | D20: 75 | G20: 0.425 | J20: 77.65 | T20: 0.55 | W20: 20
A21: 0.66 | D21: 70 | G21: 0.3 | J21: 48.41 | M21: Schillig PVP4-5, elev 289.5 masl | T21: 0.5 | W21: 15
A22: 0.6 | D22: 65 | G22: 0.212 | J22: 18.88 | M22: 10 | N22: 0 | O22: total weight | P22: 110.69 | T22: 0.4 | W22: 10
A23: 0.55 | D23: 60 | G23: 0.15 | J23: 2.3 | M23: 9 | N23: 0 | O23: tracer test derived Ks: 1.9e-3 m/s to 1.4e-2 m/s | T23: 0.3 | W23: 5
A24: 0.51 | D24: 55 | G24: 0.075 | J24: 0 | M24: 4 | N24: 64.33 | P24: = | Q24: 164 m/d to 1210 m/d
A25: 0.48 | D25: 50 | M25: 2 | N25: 12.89 | T25: Paul Van Horne <Paul.VanHorne@shanwil.com>
A26: 0.45 | D26: 45 | G26: Sample 3 Odong 20 oC | M26: 1 | N26: 11.81 | T26: ps | W26: pp | X26: total mass: 417.54 g
A27: 0.42 | D27: 40 | G27: ps | J27: pp | M27: 0.5 | N27: 7.51 | T27: 38.1 | W27: 100
A28: 0.39 | D28: 35 | G28: 4.75 | J28: 95.05 | M28: 0.297 | N28: 3.56 | T28: 25.4 | W28: 91.0284
A29: 0.36 | D29: 30 | G29: 2.36 | J29: 85.08 | M29: 0.177 | N29: 2.38 | T29: 19 | W29: 88.92082
A30: 0.32 | D30: 25 | G30: 2 | J30: 82.02 | M30: 0.125 | N30: 2.97 | T30: 12.5 | W30: 77.80572
A31: 0.28 | D31: 20 | G31: 1.18 | J31: 64.66 | M31: 0.063 | N31: 2.28 | T31: 9.5 | W31: 76.50046
A32: 0.22 | D32: 15 | G32: 0.6 | J32: 44.76 | M32: 0.01 | N32: 1.54 | T32: 4.75 | W32: 70.11065
A33: 0.15 | D33: 10 | G33: 0.425 | J33: 23.42 | T33: 2 | W33: 64.58064
A34: 0.08 | D34: 5 | G34: 0.3 | J34: 7.96 | T34: 0.85 | W34: 60.39987
A35: 0.045 | D35: 0 | G35: 0.15 | J35: 2.11 | T35: 0.425 | W35: 56.57323
G36: 0.075 | J36: 0 | T36: 0.25 | W36: 50.23813
A37: Example 2 Case 1 Vukovic 15 oC | T37: 0.15 | W37: 42.34877
A38: ps | D38: pp | G38: Sample 4 Odong 20 oC | T38: 0.075 | W38: 32.8953
A39: 5 | D39: 100 | G39: ps | J39: pp | T39: 0.0307 | W39: 25.46062
A40: 0.85 | D40: 80 | G40: 1.18 | J40: 100 | T40: 0.0199 | W40: 22.02238
A41: 0.3 | D41: 60 | G41: 0.6 | J41: 98.44 | T41: 0.0118 | W41: 18.27158
A42: 0.12 | D42: 40 | G42: 0.425 | J42: 91.55 | T42: 0.0085 | W42: 16.28899
A43: 0.039 | D43: 20 | G43: 0.3 | J43: 68.78 | T43: 0.0061 | W43: 14.25731
A44: 0.014 | D44: 10 | G44: 0.212 | J44: 25.83 | T44: 0.003 | W44: 11.3861
A45: 0.0025 | D45: 5 | G45: 0.15 | J45: 7.89 | T45: 0.0013 | W45: 8.416717
A46: 0.001 | D46: 0 | G46: 0.075 | J46: 0.93
G47: 0.063 | J47: 0

Sheet Equations
E6: 20
N11: 980
N12: 0.998136

Sheet References
B1: References
A2: 1 | B2: Aguilar, J.R. 2013. Analysis of grain size distribution and hydraulic conductivity for a variety of sediment types with application to wadi sediments. M.B2:B19S. thesis submitted to King Abdullah University of Science and Technology, Thuwal, Kingdom of Saudi Arabia, 134 pp.
A3: =A2+1 -> 2 | B3: Alyamani, M.S., Sen Z. 1993. Determination of hydraulic conductivity from complete grain-size distribution curves. Ground Water, v. 31, no. 4, 551-555.
A4: =A3+1 -> 3 | B4: Barr, D.W. 2001. Coefficient of permeability determined by measurable parameters. Ground Water, v. 39, no. 3, 356-361.
A5: 4 | B5: Barth, G.R., Hill, M.C., Illangasekare, T.H., Rajaram, H. 2001. Predictive modeling of flow and transport in a two-dimensional intermediate-scale, heterogeneous porous medium. Water Resources Research, v. 37, no. 10, 2503–2512.
A6: 5 | B6: Beyer, W. 1964. "Zur Bestimmung der Wasserdurchlässigkeit von Kiesen und Sanden aus der Kornverteilungskurve." Wasserwirtschaft-Wassertechnik 14(6): 165-168.
A7: 6 | B7: Białas, Z. (1966). O usrednianiu wspolczynnikow filtracji z zastosowaniem elektronicznej cyfrowej maszyny matematycznej (Averaging filter coefficients using digital electronic mathematical machines). Przedsiebiorstwo Geologiczne we Wroclawiu: 47-50.
A8: 7 | B8: Chapuis, R.P. 2004. Predicting the saturated hydraulic conductivity of sand and gravel using effective diameter and void ratio. Canadian Geotechnical Journal, v. 41, 787–795.
A9: 8 | B9: Devlin, J.F. (2015). HydrogeoSieveXL. Excel-based Visual Basic tool freely available at http://www.people.ku.edu/~jfdevlin/Publications.html. Cited 18 February, 2015.
A10: 9 | B10: Dullien, F.A., 1991. Fluid Transport and Pore Structure. Academic Press, San Diego, CA.
A11: 10 | B11: Freeze, R.A., Cherry, J.A. 1979. Groundwater. Prentice Hall, Englewood Cliffs, New Jersey.
A12: 11 | B12: Fuchs, S. (2010) Deterministische kf-Wert-Schätzung nach petrographischer Bohrgutansprache (Deterministic kf value estimation from petrographic borehole records). Grundwasser – Zeitschrift der Fachsektion Hydrogeologie 15: 177–189.
A13: 12 | B13: Hazen, A. 1892. Some physical properties of sands and gravels, with special reference to their use in filtration. Massachusetts State Board of Health, vol. 24th annual report, pp. 539-556.
A14: 13 | B14: Kasenow, M., 2002, Determination of Hydraulic Conductivity from Grain Size Analysis: Water Resources Publications, LLC, Highlands Ranch, Colorado, 97p.
A15: 14 | B15: Kozeny, J. (1953). Das Wasser im Boden. Grundwasserbewegung (The water in the ground. Groundwater flow). Hydraulik, Springer, p 380-445.
A16: 15 | B16: Krüger, E., 1919. Die Grundwasserbewegung (Groundwater flow). Int. Mitt. Bodenk. 8, 105–122.
A17: 16 | B17: Krumbein, W.C., Monk, G.D. 1942. Permeability as a function of the size parameters of unconsolidated sand. American Institute of Mining and Metallurgical Engineers, Transactions v. 151, 153-163.
A18: 17 | B18: Moreau, J.P. Program to demonstrate the Akima spline fitting of Function SIN(X) in double precision. http://jean-pierre.moreau.pagesperso-orange.fr/Fortran/akima_f90.txt . Cited 30 January, 2015.
A19: 18 | B19: Odong, J. 2013. Evaluation of empirical formulae for determination of hydraulic conductivity based on grain-size analysis. International Journal of Agriculture and Environment, v. 1, 1-8.
A20: 19 | B20: Rosas, J., Lopez, O., Missimer, T.M., Coulibaly, K.M., Dehwah, A.H.A., Sesler, K., Lujan, L.R., Mantilla, D. 2014. Determination of hydraulic conductivity from grain-size distribution for different depositional environments. Groundwater, v. 52, no. 3, 399-413.
A21: =A20+1 -> 20 | B21: Shepherd, R.G. 1989. Correlations of permeability and grain size. Ground Water, 27(5): 633-638.
A22: 21 | B22: Slichter, C.S., 1898, Theoretical investigations of the motion of ground waters: United States Geological Survey, 19 th Annual Report, p 295-384.
A23: 22 | B23: Terzaghi, K., 1925, Principles of soil mechanics: Engineering News-Record, v. 95, p 832.
A24: 23 | B24: Urumovic, K., Urumovic, K. Sr. 2106. The referential grain size and effective porosity in the Kozeny–Carman model. Hydrological Earth System Science, v. 20, 1669-1680.
A25: 24 | B25: Vukovic, M., Soro, A. 1992. Determinatiion of hydraulic conductivity of porous media from grain-size composition. Miladinov, D., translator, Water Resources Publications, Littleton, Colorado, USA, 83 pp.
A26: 25 | B26: Zamarin, J.A. 1928. Calculation of ground-water flow (in Russian). Trudey I.V.H. Taskeni.
A27: 26 | B27: Zunker, F. (1930). Das Verhalten des Wassers zum Boden (The behavior of groundwater). Zeitschrift für Pflanzenernährung, Düngung und Bodenkunde. A25(1): 7.

Sheet Report Grain Size
C2: Grain Size Analysis Report | G2: Date:
C4: Sample Name:
D5: =Input!C5 -> Mass Sample (g): | F5: =Input!C6 -> 100 | H5: =Input!E5 -> T (oC) | I5: =Input!E6 -> 20
A7: =Input!K2 -> Moderately well sorted sand low in fines
A20: =Input!B7 -> Sieve opening (ps) di (mm) | B20: =Input!C7 -> Mass of retained (mr) (g) | C20: =Input!D7 -> mass fraction (mf) | D20: =Input!E7 -> Percent Passing (pp) | F20: =Input!K8 -> Effective Grain Diameters (mm) | H20: =Input!M8 -> Other Useful Parameters
A21: =IF(ISBLANK(Input!B8)," ",Input!B8) -> 2 | B21: =IF(ISBLANK(Input!C8)," ",Input!C8) -> 0 | C21: =IF(ISBLANK(Input!D8)," ",Input!D8) -> 0 | D21: =IF(ISBLANK(Input!E8)," ",Input!E8) -> 100 | F21: =Input!K9 -> d10 | G21: =Input!L9 -> 0.15 | H21: Uniformity Coef. | I21: =Input!N9 -> 3.666666667
A22: =IF(ISBLANK(Input!B9)," ",Input!B9) -> 0.82 | B22: =IF(ISBLANK(Input!C9)," ",Input!C9) -> 20 | C22: =IF(ISBLANK(Input!D9)," ",Input!D9) -> 0.2 | D22: =IF(ISBLANK(Input!E9)," ",Input!E9) -> 80 | F22: =Input!K10 -> d17 | G22: =Input!L10 -> 0.241 | H22: n computed | I22: =Input!N10 -> 0.3837735057
A23: =IF(ISBLANK(Input!B10)," ",Input!B10) -> 0.55 | B23: =IF(ISBLANK(Input!C10)," ",Input!C10) -> 20 | C23: =IF(ISBLANK(Input!D10)," ",Input!D10) -> 0.2 | D23: =IF(ISBLANK(Input!E10)," ",Input!E10) -> 60 | F23: =Input!K11 -> d20 | G23: =Input!L11 -> 0.28 | H23: g (cm/s2) | I23: =Input!N11 -> 980
A24: =IF(ISBLANK(Input!B11)," ",Input!B11) -> 0.42 | B24: =IF(ISBLANK(Input!C11)," ",Input!C11) -> 20 | C24: =IF(ISBLANK(Input!D11)," ",Input!D11) -> 0.2 | D24: =IF(ISBLANK(Input!E11)," ",Input!E11) -> 40 | F24: =Input!K12 -> d50 | G24: =Input!L12 -> 0.485 | H24: r (g/cm3) | I24: =Input!N12 -> 0.998136
A25: =IF(ISBLANK(Input!B12)," ",Input!B12) -> 0.28 | B25: =IF(ISBLANK(Input!C12)," ",Input!C12) -> 20 | C25: =IF(ISBLANK(Input!D12)," ",Input!D12) -> 0.2 | D25: =IF(ISBLANK(Input!E12)," ",Input!E12) -> 20 | F25: =Input!K13 -> d60 | G25: =Input!L13 -> 0.55 | H25: m (g/cm s) | I25: =Input!N13 -> 0.009848
A26: =IF(ISBLANK(Input!B13)," ",Input!B13) -> 0.15 | B26: =IF(ISBLANK(Input!C13)," ",Input!C13) -> 10 | C26: =IF(ISBLANK(Input!D13)," ",Input!D13) -> 0.1 | D26: =IF(ISBLANK(Input!E13)," ",Input!E13) -> 10 | F26: =Input!K15 -> de (Kruger) | G26: =Input!L15 -> 0.3438349957 | H26: rg/m (1/cm s) | I26: =Input!N14 -> 99327.09992
A27: =IF(ISBLANK(Input!B14)," ",Input!B14) -> 0.045 | B27: =IF(ISBLANK(Input!C14)," ",Input!C14) -> 10 | C27: =IF(ISBLANK(Input!D14)," ",Input!D14) -> 0.1 | D27: =IF(ISBLANK(Input!E14)," ",Input!E14) -> 0 | F27: =Input!K16 -> de (Kozeny) | G27: =Input!L16 -> 0.2900887122 | H27: tau (Sauerbrei) | I27: =Input!N15 -> 1.05302
A28: =IF(ISBLANK(Input!B15)," ",Input!B15) ->  | B28: =IF(ISBLANK(Input!C15)," ",Input!C15) ->  | C28: =IF(ISBLANK(Input!D15)," ",Input!D15) ->  | D28: =IF(ISBLANK(Input!E15)," ",Input!E15) ->  | F28: =Input!K17 -> de (Zunker) | G28: =Input!L17 -> 0.3073401895 | H28: dgeometric mean | I28: =Input!L14 -> 0.4497090447
A29: =IF(ISBLANK(Input!B16)," ",Input!B16) ->  | B29: =IF(ISBLANK(Input!C16)," ",Input!C16) ->  | C29: =IF(ISBLANK(Input!D16)," ",Input!D16) ->  | D29: =IF(ISBLANK(Input!E16)," ",Input!E16) ->  | F29: =Input!K18 -> de (Zamarin) | G29: =Input!L18 -> 0.3259641305 | H29: sf | I29: =Input!N21 -> 1.178368821
A30: =IF(ISBLANK(Input!B17)," ",Input!B17) ->  | B30: =IF(ISBLANK(Input!C17)," ",Input!C17) ->  | C30: =IF(ISBLANK(Input!D17)," ",Input!D17) ->  | D30: =IF(ISBLANK(Input!E17)," ",Input!E17) ->  | F30: =Input!K19 -> Io (Alyameni) | G30: =Input!L19 -> 0.06625
A31: =IF(ISBLANK(Input!B18)," ",Input!B18) ->  | B31: =IF(ISBLANK(Input!C18)," ",Input!C18) ->  | C31: =IF(ISBLANK(Input!D18)," ",Input!D18) ->  | D31: =IF(ISBLANK(Input!E18)," ",Input!E18) ->  | F31: =Input!$L$22 -> mm | H31: =Input!$M$22 -> 0 | I31: =Input!$N$22 -> % in sample
A32: =IF(ISBLANK(Input!B19)," ",Input!B19) ->  | B32: =IF(ISBLANK(Input!C19)," ",Input!C19) ->  | C32: =IF(ISBLANK(Input!D19)," ",Input!D19) ->  | D32: =IF(ISBLANK(Input!E19)," ",Input!E19) ->  | F32: =Input!L23 -> >64 | H32: =Input!M23 -> Boulder | I32: =IF(ISBLANK(Input!N23)," ",Input!N23) -> 
A33: =IF(ISBLANK(Input!B20)," ",Input!B20) ->  | B33: =IF(ISBLANK(Input!C20)," ",Input!C20) ->  | C33: =IF(ISBLANK(Input!D20)," ",Input!D20) ->  | D33: =IF(ISBLANK(Input!E20)," ",Input!E20) ->  | F33: =Input!L24 -> 16 - 64 | H33: =Input!M24 -> coarse gravel | I33: =IF(ISBLANK(Input!N24)," ",Input!N24) -> 
A34: =IF(ISBLANK(Input!B21)," ",Input!B21) ->  | B34: =IF(ISBLANK(Input!C21)," ",Input!C21) ->  | C34: =IF(ISBLANK(Input!D21)," ",Input!D21) ->  | D34: =IF(ISBLANK(Input!E21)," ",Input!E21) ->  | F34: =Input!L25 -> 8 - 16 | H34: =Input!M25 -> medium gravel | I34: =IF(ISBLANK(Input!N25)," ",Input!N25) -> 
A35: =IF(ISBLANK(Input!B22)," ",Input!B22) ->  | B35: =IF(ISBLANK(Input!C22)," ",Input!C22) ->  | C35: =IF(ISBLANK(Input!D22)," ",Input!D22) ->  | D35: =IF(ISBLANK(Input!E22)," ",Input!E22) ->  | F35: =Input!L26 -> 2 - 8 | H35: =Input!M26 -> fine gravel | I35: =IF(ISBLANK(Input!N26)," ",Input!N26) -> 0
A36: =IF(ISBLANK(Input!B23)," ",Input!B23) ->  | B36: =IF(ISBLANK(Input!C23)," ",Input!C23) ->  | C36: =IF(ISBLANK(Input!D23)," ",Input!D23) ->  | D36: =IF(ISBLANK(Input!E23)," ",Input!E23) ->  | F36: =Input!L27 -> 0.5 - 2 | H36: =Input!M27 -> coarse sand | I36: =IF(ISBLANK(Input!N27)," ",Input!N27) -> 40
A37: =IF(ISBLANK(Input!B24)," ",Input!B24) ->  | B37: =IF(ISBLANK(Input!C24)," ",Input!C24) ->  | C37: =IF(ISBLANK(Input!D24)," ",Input!D24) ->  | D37: =IF(ISBLANK(Input!E24)," ",Input!E24) ->  | F37: =Input!L28 -> 0.25 - 0.5 | H37: =Input!M28 -> medium sand | I37: =IF(ISBLANK(Input!N28)," ",Input!N28) -> 40
A38: =IF(ISBLANK(Input!B25)," ",Input!B25) ->  | B38: =IF(ISBLANK(Input!C25)," ",Input!C25) ->  | C38: =IF(ISBLANK(Input!D25)," ",Input!D25) ->  | D38: =IF(ISBLANK(Input!E25)," ",Input!E25) ->  | F38: =Input!L29 -> 0.063 - 0.25 | H38: =Input!M29 -> fine sand | I38: =IF(ISBLANK(Input!N29)," ",Input!N29) -> 10
A39: =IF(ISBLANK(Input!B26)," ",Input!B26) ->  | B39: =IF(ISBLANK(Input!C26)," ",Input!C26) ->  | C39: =IF(ISBLANK(Input!D26)," ",Input!D26) ->  | D39: =IF(ISBLANK(Input!E26)," ",Input!E26) ->  | F39: =Input!L30 -> 0.016 - 0.063 | H39: =Input!M30 -> coarse silt | I39: =IF(ISBLANK(Input!N30)," ",Input!N30) -> 10
A40: =IF(ISBLANK(Input!B27)," ",Input!B27) ->  | B40: =IF(ISBLANK(Input!C27)," ",Input!C27) ->  | C40: =IF(ISBLANK(Input!D27)," ",Input!D27) ->  | D40: =IF(ISBLANK(Input!E27)," ",Input!E27) ->  | F40: =Input!L31 -> 0.008 - 0.016 | H40: =Input!M31 -> medium silt | I40: =IF(ISBLANK(Input!N31)," ",Input!N31) -> 
A41: =IF(ISBLANK(Input!B28)," ",Input!B28) ->  | B41: =IF(ISBLANK(Input!C28)," ",Input!C28) ->  | C41: =IF(ISBLANK(Input!D28)," ",Input!D28) ->  | D41: =IF(ISBLANK(Input!E28)," ",Input!E28) ->  | F41: =Input!L32 -> 0.002 - 0.008 | H41: =Input!M32 -> fine silt | I41: =IF(ISBLANK(Input!N32)," ",Input!N32) -> 
A42: =IF(ISBLANK(Input!B29)," ",Input!B29) ->  | B42: =IF(ISBLANK(Input!C29)," ",Input!C29) ->  | C42: =IF(ISBLANK(Input!D29)," ",Input!D29) ->  | D42: =IF(ISBLANK(Input!E29)," ",Input!E29) ->  | F42: =Input!L33 -> <0.002 | H42: =Input!M33 -> clay | I42: =IF(ISBLANK(Input!N33)," ",Input!N33) -> 
A43: =IF(ISBLANK(Input!B29)," ","Data continue, additional pages required …") -> 

Sheet Report K
C2: K from Grain Size Analysis Report | F2: Date:
C4: Sample Name:
C6: =Input!C5 -> Mass Sample (g): | D6: =Input!C6 -> 100 | F6: =Input!E5 -> T (oC) | G6: =Input!E6 -> 20
A8: =Input!K2 -> Moderately well sorted sand low in fines
C27: =Input!G$18 -> Estimation of Hydraulic Conductivity | D27: =Input!H$18 -> cm/s | E27: =Input!I$18 -> m/s | F27: =Input!J$18 -> m/d | G27: de
C28: Hazen | D28: =IF(ISBLANK(Input!H19)," ",Input!H19) -> 0.03000614404 | E28: =IF(ISBLANK(Input!I19)," ",Input!I19) -> 0.0003000614404 | F28: =IF(ISBLANK(Input!J19)," ",Input!J19) -> 25.92530845
C29: Hazen K (cm/s) = d10 (mm) | D29: =IF(ISBLANK(Input!H20)," ",Input!H20) -> 0.0225 | E29: =IF(ISBLANK(Input!I20)," ",Input!I20) -> 0.000225 | F29: =IF(ISBLANK(Input!J20)," ",Input!J20) -> 19.44
C30: Slichter | D30: =IF(ISBLANK(Input!H21)," ",Input!H21) -> 0.009596320932 | E30: =IF(ISBLANK(Input!I21)," ",Input!I21) -> 9.596320932e-05 | F30: =IF(ISBLANK(Input!J21)," ",Input!J21) -> 8.291221285
C31: Terzaghi | D31: =IF(ISBLANK(Input!H22)," ",Input!H22) -> 0.01669533766 | E31: =IF(ISBLANK(Input!I22)," ",Input!I22) -> 0.0001669533766 | F31: =IF(ISBLANK(Input!J22)," ",Input!J22) -> 14.42477174
C32: Beyer | D32: =IF(ISBLANK(Input!H23)," ",Input!H23) -> 0.02480790997 | E32: =IF(ISBLANK(Input!I23)," ",Input!I23) -> 0.0002480790997 | F32: =IF(ISBLANK(Input!J23)," ",Input!J23) -> 21.43403421
C33: Sauerbrei | D33: =IF(ISBLANK(Input!H24)," ",Input!H24) -> 0.03390892043 | E33: =IF(ISBLANK(Input!I24)," ",Input!I24) -> 0.0003390892043 | F33: =IF(ISBLANK(Input!J24)," ",Input!J24) -> 29.29730725
C34: Kruger | D34: =IF(ISBLANK(Input!H25)," ",Input!H25) -> 0.05162397279 | E34: =IF(ISBLANK(Input!I25)," ",Input!I25) -> 0.0005162397279 | F34: =IF(ISBLANK(Input!J25)," ",Input!J25) -> 44.60311249
C35: Kozeny-Carmen | D35: =IF(ISBLANK(Input!H26)," ",Input!H26) -> 0.1032646656 | E35: =IF(ISBLANK(Input!I26)," ",Input!I26) -> 0.001032646656 | F35: =IF(ISBLANK(Input!J26)," ",Input!J26) -> 89.2206711
C36: Zunker | D36: =IF(ISBLANK(Input!H27)," ",Input!H27) -> 0.05640367593 | E36: =IF(ISBLANK(Input!I27)," ",Input!I27) -> 0.0005640367593 | F36: =IF(ISBLANK(Input!J27)," ",Input!J27) -> 48.73277601
C37: Zamarin | D37: =IF(ISBLANK(Input!H28)," ",Input!H28) -> 0.0664575214 | E37: =IF(ISBLANK(Input!I28)," ",Input!I28) -> 0.000664575214 | F37: =IF(ISBLANK(Input!J28)," ",Input!J28) -> 57.41929849
C38: USBR | D38: =IF(ISBLANK(Input!H29)," ",Input!H29) -> 0.02551364244 | E38: =IF(ISBLANK(Input!I29)," ",Input!I29) -> 0.0002551364244 | F38: =IF(ISBLANK(Input!J29)," ",Input!J29) -> 22.04378707
C39: Barr | D39: =IF(ISBLANK(Input!H30)," ",Input!H30) -> 0.01337274495 | E39: =IF(ISBLANK(Input!I30)," ",Input!I30) -> 0.0001337274495 | F39: =IF(ISBLANK(Input!J30)," ",Input!J30) -> 11.55405164
C40: Alyamani and Sen | D40: =IF(ISBLANK(Input!H31)," ",Input!H31) -> 0.008379117839 | E40: =IF(ISBLANK(Input!I31)," ",Input!I31) -> 8.379117839e-05 | F40: =IF(ISBLANK(Input!J31)," ",Input!J31) -> 7.239557812
C41: Chapuis | D41: =IF(ISBLANK(Input!H32)," ",Input!H32) -> 0.01738644839 | E41: =IF(ISBLANK(Input!I32)," ",Input!I32) -> 0.0001738644839 | F41: =IF(ISBLANK(Input!J32)," ",Input!J32) -> 15.02189141
C42: Krumbein and Monk | D42: =IF(ISBLANK(Input!H33)," ",Input!H33) -> 0.03218278355 | E42: =IF(ISBLANK(Input!I33)," ",Input!I33) -> 0.0003218278355 | F42: =IF(ISBLANK(Input!J33)," ",Input!J33) -> 27.80592499
C43: Shepherd | D43: =IF(ISBLANK(Input!H34)," ",Input!H34) -> 0.05008276915 | E43: =IF(ISBLANK(Input!I34)," ",Input!I34) -> 0.0005008276915 | F43: =IF(ISBLANK(Input!J34)," ",Input!J34) -> 43.27151255
C44: geometric mean | D44: =IF(ISBLANK(Input!H35)," ",Input!H35) -> 0.02563167161 | E44: =IF(ISBLANK(Input!I35)," ",Input!I35) -> 0.0002563167161 | F44: =IF(ISBLANK(Input!J35)," ",Input!J35) -> 22.14576427
C45: arithmetic mean | D45: =IF(ISBLANK(Input!H36)," ",Input!H36) -> 0.03120049151 | E45: =IF(ISBLANK(Input!I36)," ",Input!I36) -> 0.0003120049151 | F45: =IF(ISBLANK(Input!J36)," ",Input!J36) -> 26.95722466
